[Event "Titled Tuesday Blitz June 6 Early 2023"]
[White "Pakleza, Zbigniew"]
[Black "Mladek, Richard"]
[WhiteFideId "1119290"]
[BlackFideId "386588"]
[WhiteElo "2410"]
[BlackElo "2332"]
[Result "1-0"]
[Round "7"]
[TimeControl "180+2"]
[Date "2023.06.06"]
[WhiteClock "0:01:11"]
[BlackClock "0:00:48"]
[Board "45"]

1. d4 {[%clk 0:03:00]}  Nf6 {[%clk 0:02:52]} 2. Nf3 {[%clk 0:03:00]}  g6 {[%clk 0:02:52]} 3. Bf4 {[%clk 0:03:01]}  Bg7 {[%clk 0:02:52]} 4. e3 {[%clk 0:03:01]}  O-O {[%clk 0:02:52]} 5. Be2 {[%clk 0:03:02]}  d6 {[%clk 0:02:52]} 6. h3 {[%clk 0:03:02]}  Nbd7 {[%clk 0:02:50]} 7. O-O {[%clk 0:03:01]}  Qe8 {[%clk 0:02:44]} 8. c4 {[%clk 0:03:00]}  e5 {[%clk 0:02:44]} 9. Bh2 {[%clk 0:03:01]}  b6 {[%clk 0:02:36]} 10. Nc3 {[%clk 0:03:01]}  a6 {[%clk 0:02:28]} 11. Rc1 {[%clk 0:03:00]}  Bb7 {[%clk 0:02:28]} 12. b4 {[%clk 0:03:00]}  exd4 {[%clk 0:02:23]} 13. exd4 {[%clk 0:02:59]}  Ne4 {[%clk 0:02:04]} 14. Nd5 {[%clk 0:02:59]}  Qd8 {[%clk 0:01:59]} 15. Re1 {[%clk 0:02:54]}  Re8 {[%clk 0:01:54]} 16. Bd3 {[%clk 0:02:46]}  Ndf6 {[%clk 0:01:55]} 17. Ne3 {[%clk 0:02:29]}  c5 {[%clk 0:01:43]} 18. bxc5 {[%clk 0:02:13]}  bxc5 {[%clk 0:01:37]} 19. d5 {[%clk 0:02:10]}  Bh6 {[%clk 0:01:28]} 20. Qc2 {[%clk 0:02:00]}  Qe7 {[%clk 0:01:22]} 21. Rb1 {[%clk 0:01:41]}  Bc8 {[%clk 0:01:16]} 22. Ng4 {[%clk 0:01:35]}  Nxg4 {[%clk 0:01:13]} 23. Rxe4 {[%clk 0:01:29]}  Ne5 {[%clk 0:01:04]} 24. Nxe5 {[%clk 0:01:29]}  dxe5 {[%clk 0:00:58]} 25. Rxe5 {[%clk 0:01:30]}  Qf8 {[%clk 0:00:56]} 26. Qa4 {[%clk 0:01:17]}  Rxe5 {[%clk 0:00:49]} 27. Bxe5 {[%clk 0:01:18]}  Qe7 {[%clk 0:00:48]} 28. Qc6 {[%clk 0:01:11]} 1-0


[Site "https://www.chess.com"]

[Event "Titled Tuesday Blitz June 6 Early 2023"]
[White "Zheenbekov, Nurgazy"]
[Black "Koshulyan, Egor A."]
[WhiteFideId "13800485"]
[BlackFideId "24237000"]
[WhiteElo "1975"]
[BlackElo "2216"]
[Result "0-1"]
[Round "7"]
[TimeControl "180+2"]
[Date "2023.06.06"]
[WhiteClock "0:00:03"]
[BlackClock "0:00:13"]
[Board "46"]

1. e4 {[%clk 0:02:59]}  c5 {[%clk 0:03:00]} 2. Nf3 {[%clk 0:02:58]}  Nc6 {[%clk 0:03:00]} 3. Bb5 {[%clk 0:02:58]}  g5 {[%clk 0:03:00]} 4. h3 {[%clk 0:02:49]}  Nf6 {[%clk 0:03:00]} 5. Nc3 {[%clk 0:02:42]}  g4 {[%clk 0:02:54]} 6. hxg4 {[%clk 0:02:33]}  Nxg4 {[%clk 0:02:54]} 7. d4 {[%clk 0:02:28]}  a6 {[%clk 0:02:30]} 8. Bc4 {[%clk 0:02:22]}  cxd4 {[%clk 0:02:30]} 9. Bxf7+ {[%clk 0:02:08]}  Kxf7 {[%clk 0:02:31]} 10. Ng5+ {[%clk 0:02:07]}  Ke8 {[%clk 0:02:22]} 11. Qxg4 {[%clk 0:02:06]}  d6 {[%clk 0:02:23]} 12. Qh5+ {[%clk 0:02:01]}  Kd7 {[%clk 0:02:23]} 13. Nd5 {[%clk 0:01:59]}  Ne5 {[%clk 0:02:07]} 14. Bf4 {[%clk 0:01:45]}  e6 {[%clk 0:01:17]} 15. Bxe5 {[%clk 0:01:31]}  dxe5 {[%clk 0:01:16]} 16. Qf7+ {[%clk 0:00:50]}  Kd6 {[%clk 0:01:15]} 17. Qh5 {[%clk 0:00:42]}  Kc6 {[%clk 0:00:57]} 18. Nf7 {[%clk 0:00:41]}  Qa5+ {[%clk 0:00:57]} 19. c3 {[%clk 0:00:35]}  exd5 {[%clk 0:00:55]} 20. Qxe5 {[%clk 0:00:20]}  Rg8 {[%clk 0:00:39]} 21. O-O {[%clk 0:00:20]}  Bh3 {[%clk 0:00:34]} 22. Qf6+ {[%clk 0:00:17]}  Kc7 {[%clk 0:00:26]} 23. Rfc1 {[%clk 0:00:17]}  d3 {[%clk 0:00:22]} 24. c4 {[%clk 0:00:16]}  Rxg2+ {[%clk 0:00:19]} 25. Kh1 {[%clk 0:00:16]}  d4 {[%clk 0:00:19]} 26. Qf4+ {[%clk 0:00:16]}  Kb6 {[%clk 0:00:18]} 27. c5+ {[%clk 0:00:15]}  Ka7 {[%clk 0:00:18]} 28. c6 {[%clk 0:00:15]}  Qh5 {[%clk 0:00:17]} 29. cxb7 {[%clk 0:00:07]}  Rb8 {[%clk 0:00:17]} 30. Nd8 {[%clk 0:00:06]}  Rxd8 {[%clk 0:00:12]} 31. Rc8 {[%clk 0:00:06]}  Bxc8+ {[%clk 0:00:12]} 32. Kxg2 {[%clk 0:00:05]}  Bxb7 {[%clk 0:00:13]} 33. Rc1 {[%clk 0:00:03]}  Qg6+ {[%clk 0:00:12]} 34. Kf1 {[%clk 0:00:03]}  Bh6 {[%clk 0:00:13]} 0-1


[Site "https://www.chess.com"]

[Event "Titled Tuesday Blitz June 6 Early 2023"]
[White "Quintiliano Pinto, Renato R."]
[Black "Pham, Le Thao Nguyen"]
[WhiteFideId "2117568"]
[BlackFideId "12401226"]
[WhiteElo "2459"]
[BlackElo "2286"]
[Result "0-1"]
[Round "7"]
[TimeControl "180+2"]
[Date "2023.06.06"]
[WhiteClock "0:00:10"]
[BlackClock "0:00:07"]
[Board "48"]

1. c4 {[%clk 0:03:00]}  c6 {[%clk 0:02:55]} 2. Nf3 {[%clk 0:02:58]}  d5 {[%clk 0:02:55]} 3. e3 {[%clk 0:02:57]}  Nf6 {[%clk 0:02:55]} 4. b3 {[%clk 0:02:58]}  Bg4 {[%clk 0:02:52]} 5. Bb2 {[%clk 0:02:57]}  e6 {[%clk 0:02:49]} 6. Nc3 {[%clk 0:02:57]}  Nbd7 {[%clk 0:02:48]} 7. h3 {[%clk 0:02:57]}  Bh5 {[%clk 0:02:48]} 8. Be2 {[%clk 0:02:48]}  Bd6 {[%clk 0:02:41]} 9. d4 {[%clk 0:02:48]}  Ne4 {[%clk 0:02:06]} 10. Nxe4 {[%clk 0:02:43]}  dxe4 {[%clk 0:02:05]} 11. Nd2 {[%clk 0:02:44]}  Bg6 {[%clk 0:02:00]} 12. O-O {[%clk 0:02:07]}  O-O {[%clk 0:01:58]} 13. Bh5 {[%clk 0:02:02]}  Bxh5 {[%clk 0:01:50]} 14. Qxh5 {[%clk 0:02:03]}  f5 {[%clk 0:01:50]} 15. a3 {[%clk 0:01:38]}  Rf6 {[%clk 0:01:38]} 16. Qe2 {[%clk 0:01:25]}  Rg6 {[%clk 0:01:34]} 17. f3 {[%clk 0:01:18]}  Qh4 {[%clk 0:01:17]} 18. fxe4 {[%clk 0:01:13]}  fxe4 {[%clk 0:01:14]} 19. c5 {[%clk 0:00:20]}  Bc7 {[%clk 0:00:46]} 20. Nc4 {[%clk 0:00:16]}  Qxh3 {[%clk 0:00:33]} 21. Nd6 {[%clk 0:00:16]}  Nf6 {[%clk 0:00:20]} 22. Rf4 {[%clk 0:00:15]}  Bxd6 {[%clk 0:00:15]} 23. cxd6 {[%clk 0:00:16]}  Rd8 {[%clk 0:00:14]} 24. Raf1 {[%clk 0:00:15]}  Rxd6 {[%clk 0:00:14]} 25. Qf2 {[%clk 0:00:13]}  Qg3 {[%clk 0:00:10]} 26. Qxg3 {[%clk 0:00:13]}  Rxg3 {[%clk 0:00:11]} 27. Kf2 {[%clk 0:00:14]}  Rg5 {[%clk 0:00:10]} 28. Rc1 {[%clk 0:00:13]}  Rdd5 {[%clk 0:00:11]} 29. g3 {[%clk 0:00:13]}  Kf7 {[%clk 0:00:10]} 30. a4 {[%clk 0:00:12]}  h5 {[%clk 0:00:09]} 31. Ba3 {[%clk 0:00:12]}  a6 {[%clk 0:00:09]} 32. Bc5 {[%clk 0:00:12]}  Rgf5 {[%clk 0:00:10]} 33. Bb6 {[%clk 0:00:11]}  g5 {[%clk 0:00:08]} 34. Rxf5 {[%clk 0:00:11]}  exf5 {[%clk 0:00:09]} 35. Bc7 {[%clk 0:00:10]}  Ke6 {[%clk 0:00:09]} 36. Ke2 {[%clk 0:00:10]}  Ng4 {[%clk 0:00:06]} 37. Rh1 {[%clk 0:00:10]}  Nf6 {[%clk 0:00:05]} 38. Be5 {[%clk 0:00:10]}  c5 {[%clk 0:00:04]} 39. Bxf6 {[%clk 0:00:09]}  Kxf6 {[%clk 0:00:05]} 40. Rxh5 {[%clk 0:00:08]}  cxd4 {[%clk 0:00:06]} 41. exd4 {[%clk 0:00:09]}  Rxd4 {[%clk 0:00:07]} 42. Rh6+ {[%clk 0:00:10]}  Ke5 {[%clk 0:00:07]} 43. Rb6 {[%clk 0:00:11]}  Rd3 {[%clk 0:00:07]} 44. Rxb7 {[%clk 0:00:11]}  Rxg3 {[%clk 0:00:07]} 45. b4 {[%clk 0:00:10]}  f4 {[%clk 0:00:07]} 46. a5 {[%clk 0:00:11]}  Rg2+ {[%clk 0:00:06]} 47. Kf1 {[%clk 0:00:11]}  Rb2 {[%clk 0:00:07]} 48. Rb6 {[%clk 0:00:10]}  f3 {[%clk 0:00:07]} 0-1


[Site "https://www.chess.com"]

[Event "Titled Tuesday Blitz June 6 Early 2023"]
[White "Hristodoulou, Panagiotis"]
[Black "benny_aizenberg"]
[WhiteFideId "4214340"]
[WhiteElo "2272"]
[BlackElo "2717"]
[Result "0-1"]
[Round "7"]
[TimeControl "180+2"]
[Date "2023.06.06"]
[WhiteClock "0:00:02"]
[BlackClock "0:00:03"]
[Board "50"]

1. e4 {[%clk 0:03:00]}  c5 {[%clk 0:02:49]} 2. Nf3 {[%clk 0:02:59]}  d6 {[%clk 0:02:39]} 3. d4 {[%clk 0:02:59]}  cxd4 {[%clk 0:02:37]} 4. Nxd4 {[%clk 0:03:00]}  Nf6 {[%clk 0:02:36]} 5. Nc3 {[%clk 0:03:00]}  a6 {[%clk 0:02:36]} 6. Be2 {[%clk 0:02:59]}  e5 {[%clk 0:02:35]} 7. Nf3 {[%clk 0:02:59]}  Be7 {[%clk 0:02:29]} 8. Bg5 {[%clk 0:02:58]}  O-O {[%clk 0:02:26]} 9. O-O {[%clk 0:02:55]}  Nbd7 {[%clk 0:02:16]} 10. a4 {[%clk 0:02:55]}  h6 {[%clk 0:02:12]} 11. Be3 {[%clk 0:02:49]}  b6 {[%clk 0:02:08]} 12. Nd2 {[%clk 0:02:49]}  Bb7 {[%clk 0:02:05]} 13. Bf3 {[%clk 0:02:47]}  Rc8 {[%clk 0:02:02]} 14. Qe2 {[%clk 0:02:45]}  Nc5 {[%clk 0:01:50]} 15. Rfd1 {[%clk 0:02:44]}  Qc7 {[%clk 0:01:39]} 16. g3 {[%clk 0:02:33]}  Rfd8 {[%clk 0:01:35]} 17. Bg2 {[%clk 0:02:32]}  d5 {[%clk 0:01:05]} 18. exd5 {[%clk 0:02:21]}  Nxd5 {[%clk 0:01:04]} 19. Nxd5 {[%clk 0:02:20]}  Bxd5 {[%clk 0:01:02]} 20. Bxd5 {[%clk 0:02:07]}  Rxd5 {[%clk 0:01:03]} 21. b4 {[%clk 0:01:58]}  Ne6 {[%clk 0:00:55]} 22. Qxa6 {[%clk 0:01:48]}  Bxb4 {[%clk 0:00:50]} 23. Nf3 {[%clk 0:01:04]}  Rxd1+ {[%clk 0:00:44]} 24. Rxd1 {[%clk 0:01:05]}  Qxc2 {[%clk 0:00:40]} 25. Rc1 {[%clk 0:01:02]}  Qxc1+ {[%clk 0:00:38]} 26. Bxc1 {[%clk 0:01:02]}  Rxc1+ {[%clk 0:00:38]} 27. Kg2 {[%clk 0:01:03]}  e4 {[%clk 0:00:35]} 28. Qa8+ {[%clk 0:01:03]}  Bf8 {[%clk 0:00:31]} 29. Qxe4 {[%clk 0:01:02]}  Nc5 {[%clk 0:00:30]} 30. Qc6 {[%clk 0:00:58]}  Ra1 {[%clk 0:00:28]} 31. Qxb6 {[%clk 0:00:45]}  Rxa4 {[%clk 0:00:28]} 32. Ne5 {[%clk 0:00:40]}  Ra6 {[%clk 0:00:29]} 33. Qd8 {[%clk 0:00:36]}  Re6 {[%clk 0:00:25]} 34. Qc7 {[%clk 0:00:31]}  Rf6 {[%clk 0:00:20]} 35. Nd7 {[%clk 0:00:21]}  Nxd7 {[%clk 0:00:20]} 36. Qxd7 {[%clk 0:00:22]}  Rd6 {[%clk 0:00:20]} 37. Qc7 {[%clk 0:00:21]}  g6 {[%clk 0:00:19]} 38. g4 {[%clk 0:00:20]}  Kg7 {[%clk 0:00:19]} 39. h3 {[%clk 0:00:17]}  Re6 {[%clk 0:00:19]} 40. Qc4 {[%clk 0:00:15]}  Bd6 {[%clk 0:00:19]} 41. f4 {[%clk 0:00:15]}  Rf6 {[%clk 0:00:19]} 42. f5 {[%clk 0:00:13]}  gxf5 {[%clk 0:00:19]} 43. Qd4 {[%clk 0:00:08]}  f4 {[%clk 0:00:13]} 44. Kf3 {[%clk 0:00:08]}  Kg6 {[%clk 0:00:12]} 45. h4 {[%clk 0:00:09]}  Re6 {[%clk 0:00:11]} 46. h5+ {[%clk 0:00:09]}  Kh7 {[%clk 0:00:11]} 47. Qd3+ {[%clk 0:00:09]}  Kg7 {[%clk 0:00:10]} 48. Qd4+ {[%clk 0:00:09]}  Kg8 {[%clk 0:00:08]} 49. Kf2 {[%clk 0:00:07]}  Be5 {[%clk 0:00:04]} 50. Qd8+ {[%clk 0:00:06]}  Kg7 {[%clk 0:00:05]} 51. g5 {[%clk 0:00:05]}  hxg5 {[%clk 0:00:06]} 52. Qxg5+ {[%clk 0:00:05]}  Kh7 {[%clk 0:00:06]} 53. Kf3 {[%clk 0:00:06]}  Bd6 {[%clk 0:00:06]} 54. Kg4 {[%clk 0:00:04]}  Kh8 {[%clk 0:00:04]} 55. Qd8+ {[%clk 0:00:03]}  Kg7 {[%clk 0:00:04]} 56. Kg5 {[%clk 0:00:02]}  Be7+ {[%clk 0:00:03]} 0-1


[Site "https://www.chess.com"]

[Event "Titled Tuesday Blitz June 6 Early 2023"]
[White "Jaracz, Pawel"]
[Black "Nikologorsky, Matfei"]
[WhiteFideId "1102222"]
[BlackFideId "24102474"]
[WhiteElo "2454"]
[BlackElo "2153"]
[Result "0-1"]
[Round "7"]
[TimeControl "180+2"]
[Date "2023.06.06"]
[WhiteClock "0:00:06"]
[BlackClock "0:00:07"]
[Board "51"]

1. e4 {[%clk 0:01:17]}  c5 {[%clk 0:02:58]} 2. Nf3 {[%clk 0:01:17]}  e6 {[%clk 0:02:58]} 3. d4 {[%clk 0:01:17]}  cxd4 {[%clk 0:02:59]} 4. Nxd4 {[%clk 0:01:18]}  a6 {[%clk 0:03:00]} 5. Bd3 {[%clk 0:01:17]}  Nf6 {[%clk 0:02:59]} 6. O-O {[%clk 0:01:17]}  Qc7 {[%clk 0:02:59]} 7. Qe2 {[%clk 0:01:17]}  d6 {[%clk 0:02:59]} 8. f4 {[%clk 0:01:16]}  Be7 {[%clk 0:02:59]} 9. c4 {[%clk 0:01:16]}  Nbd7 {[%clk 0:02:50]} 10. Nc3 {[%clk 0:01:16]}  O-O {[%clk 0:02:48]} 11. Be3 {[%clk 0:01:11]}  b6 {[%clk 0:02:48]} 12. Rac1 {[%clk 0:01:10]}  Bb7 {[%clk 0:02:48]} 13. f5 {[%clk 0:01:10]}  e5 {[%clk 0:02:42]} 14. Nf3 {[%clk 0:00:57]}  Rac8 {[%clk 0:02:40]} 15. Kh1 {[%clk 0:00:56]}  Nc5 {[%clk 0:02:34]} 16. Nd2 {[%clk 0:00:40]}  Qb8 {[%clk 0:02:25]} 17. Bg5 {[%clk 0:00:33]}  Qa8 {[%clk 0:02:23]} 18. b4 {[%clk 0:00:22]}  Nxd3 {[%clk 0:02:11]} 19. Qxd3 {[%clk 0:00:21]}  Rfe8 {[%clk 0:02:12]} 20. Bxf6 {[%clk 0:00:20]}  Bxf6 {[%clk 0:02:09]} 21. Rc2 {[%clk 0:00:20]}  Qb8 {[%clk 0:01:56]} 22. Nf3 {[%clk 0:00:20]}  Qc7 {[%clk 0:01:51]} 23. Nd5 {[%clk 0:00:13]}  Bxd5 {[%clk 0:01:51]} 24. Qxd5 {[%clk 0:00:13]}  Be7 {[%clk 0:01:45]} 25. Rfc1 {[%clk 0:00:13]}  Qc6 {[%clk 0:01:39]} 26. Qd3 {[%clk 0:00:11]}  h6 {[%clk 0:01:34]} 27. h4 {[%clk 0:00:11]}  a5 {[%clk 0:01:30]} 28. b5 {[%clk 0:00:09]}  Qb7 {[%clk 0:01:24]} 29. g4 {[%clk 0:00:09]}  f6 {[%clk 0:01:18]} 30. Kg2 {[%clk 0:00:08]}  Rc5 {[%clk 0:01:16]} 31. Nd2 {[%clk 0:00:08]}  Rec8 {[%clk 0:01:13]} 32. Nf1 {[%clk 0:00:09]}  Kf7 {[%clk 0:01:02]} 33. Ne3 {[%clk 0:00:09]}  Bd8 {[%clk 0:00:56]} 34. Nd5 {[%clk 0:00:10]}  Qd7 {[%clk 0:00:50]} 35. a4 {[%clk 0:00:09]}  Qe8 {[%clk 0:00:49]} 36. Qf3 {[%clk 0:00:09]}  Qh8 {[%clk 0:00:48]} 37. Kf1 {[%clk 0:00:08]}  Qh7 {[%clk 0:00:47]} 38. Ke2 {[%clk 0:00:09]}  Bc7 {[%clk 0:00:43]} 39. Kd3 {[%clk 0:00:09]}  Bd8 {[%clk 0:00:41]} 40. Rc3 {[%clk 0:00:09]}  Kf8 {[%clk 0:00:39]} 41. R1c2 {[%clk 0:00:09]}  Kf7 {[%clk 0:00:38]} 42. Kd2 {[%clk 0:00:09]}  Kf8 {[%clk 0:00:38]} 43. Kc1 {[%clk 0:00:10]}  Kf7 {[%clk 0:00:39]} 44. Kb2 {[%clk 0:00:10]}  Kf8 {[%clk 0:00:39]} 45. Kb3 {[%clk 0:00:11]}  Kf7 {[%clk 0:00:40]} 46. Rh2 {[%clk 0:00:10]}  Kf8 {[%clk 0:00:38]} 47. Rh1 {[%clk 0:00:10]}  Kf7 {[%clk 0:00:37]} 48. Qe2 {[%clk 0:00:10]}  Kf8 {[%clk 0:00:36]} 49. Rd1 {[%clk 0:00:11]}  Qg8 {[%clk 0:00:35]} 50. Ne3 {[%clk 0:00:11]}  Be7 {[%clk 0:00:34]} 51. Rd5 {[%clk 0:00:11]}  Qf7 {[%clk 0:00:33]} 52. Rcd3 {[%clk 0:00:10]}  Ke8 {[%clk 0:00:29]} 53. Rxc5 {[%clk 0:00:10]}  dxc5 {[%clk 0:00:28]} 54. Nd5 {[%clk 0:00:10]}  Bd8 {[%clk 0:00:27]} 55. Rg3 {[%clk 0:00:10]}  Rb8 {[%clk 0:00:26]} 56. Qe3 {[%clk 0:00:09]}  Rb7 {[%clk 0:00:26]} 57. Qd2 {[%clk 0:00:09]}  Rd7 {[%clk 0:00:26]} 58. Rd3 {[%clk 0:00:09]}  Kf8 {[%clk 0:00:20]} 59. Qh2 {[%clk 0:00:09]}  Ke8 {[%clk 0:00:20]} 60. g5 {[%clk 0:00:09]}  fxg5 {[%clk 0:00:20]} 61. Qxe5+ {[%clk 0:00:08]}  Kf8 {[%clk 0:00:20]} 62. hxg5 {[%clk 0:00:07]}  Bxg5 {[%clk 0:00:20]} 63. Qb8+ {[%clk 0:00:07]}  Bd8 {[%clk 0:00:18]} 64. Qe5 {[%clk 0:00:06]}  Qe8 {[%clk 0:00:17]} 65. Qf4 {[%clk 0:00:05]}  Qf7 {[%clk 0:00:16]} 66. e5 {[%clk 0:00:05]}  Bg5 {[%clk 0:00:16]} 67. Qe4 {[%clk 0:00:05]}  Qe8 {[%clk 0:00:16]} 68. e6 {[%clk 0:00:04]}  Rd8 {[%clk 0:00:16]} 69. Qe5 {[%clk 0:00:05]}  Kg8 {[%clk 0:00:15]} 70. Rg3 {[%clk 0:00:04]}  Kh7 {[%clk 0:00:15]} 71. Qe4 {[%clk 0:00:04]}  Kh8 {[%clk 0:00:14]} 72. f6 {[%clk 0:00:05]}  gxf6 {[%clk 0:00:13]} 73. Qf5 {[%clk 0:00:04]}  Rd6 {[%clk 0:00:12]} 74. Rxg5 {[%clk 0:00:04]}  fxg5 {[%clk 0:00:12]} 75. Qf6+ {[%clk 0:00:04]}  Kh7 {[%clk 0:00:12]} 76. Qf5+ {[%clk 0:00:04]}  Qg6 {[%clk 0:00:10]} 77. Nf6+ {[%clk 0:00:01]}  Kg7 {[%clk 0:00:06]} 78. Qxg6+ {[%clk 0:00:01]}  Kxg6 {[%clk 0:00:06]} 79. e7 {[%clk 0:00:02]}  Re6 {[%clk 0:00:06]} 80. e8=Q+ {[%clk 0:00:02]}  Rxe8 {[%clk 0:00:07]} 81. Nxe8 {[%clk 0:00:03]}  Kf5 {[%clk 0:00:08]} 82. Nd6+ {[%clk 0:00:04]}  Ke5 {[%clk 0:00:08]} 83. Nf7+ {[%clk 0:00:04]}  Kf4 {[%clk 0:00:06]} 84. Nxh6 {[%clk 0:00:05]}  g4 {[%clk 0:00:07]} 85. Kc3 {[%clk 0:00:06]}  g3 {[%clk 0:00:07]} 0-1


[Site "https://www.chess.com"]

[Event "Titled Tuesday Blitz June 6 Early 2023"]
[White "Gabdushev, Ruslan"]
[Black "Tristan, Leonardo"]
[WhiteFideId "4137833"]
[BlackFideId "113816"]
[WhiteElo "2233"]
[BlackElo "2461"]
[Result "1-0"]
[Round "7"]
[TimeControl "180+2"]
[Date "2023.06.06"]
[WhiteClock "0:00:01"]
[BlackClock "0:00:01"]
[Board "52"]

1. b3 {[%clk 0:02:59]}  d5 {[%clk 0:02:59]} 2. Bb2 {[%clk 0:02:59]}  Bf5 {[%clk 0:03:00]} 3. e3 {[%clk 0:02:59]}  e6 {[%clk 0:03:00]} 4. f4 {[%clk 0:02:58]}  c5 {[%clk 0:03:00]} 5. Nf3 {[%clk 0:02:58]}  Nc6 {[%clk 0:03:00]} 6. Bb5 {[%clk 0:02:58]}  Ne7 {[%clk 0:03:01]} 7. Ne5 {[%clk 0:02:54]}  Qb6 {[%clk 0:02:49]} 8. Bxc6+ {[%clk 0:02:48]}  Nxc6 {[%clk 0:02:49]} 9. O-O {[%clk 0:02:47]}  f6 {[%clk 0:02:47]} 10. Nxc6 {[%clk 0:02:46]}  Qxc6 {[%clk 0:02:48]} 11. d3 {[%clk 0:02:44]}  O-O-O {[%clk 0:02:48]} 12. Nd2 {[%clk 0:02:40]}  h5 {[%clk 0:02:43]} 13. Qf3 {[%clk 0:02:37]}  Bg4 {[%clk 0:02:30]} 14. Qf2 {[%clk 0:02:35]}  Bd6 {[%clk 0:02:21]} 15. Nf3 {[%clk 0:02:10]}  Bf5 {[%clk 0:02:13]} 16. Rad1 {[%clk 0:02:06]}  Qc7 {[%clk 0:02:12]} 17. h3 {[%clk 0:02:01]}  Kb8 {[%clk 0:02:11]} 18. Rfe1 {[%clk 0:01:55]}  Bg6 {[%clk 0:02:06]} 19. Qg3 {[%clk 0:01:35]}  Bf5 {[%clk 0:01:56]} 20. Qf2 {[%clk 0:01:34]}  Rhe8 {[%clk 0:01:47]} 21. e4 {[%clk 0:01:31]}  Bh7 {[%clk 0:01:25]} 22. e5 {[%clk 0:01:30]}  Be7 {[%clk 0:01:26]} 23. Qh4 {[%clk 0:01:20]}  f5 {[%clk 0:01:10]} 24. Qxh5 {[%clk 0:01:16]}  Rh8 {[%clk 0:01:11]} 25. Ng5 {[%clk 0:01:09]}  g6 {[%clk 0:00:39]} 26. Qf3 {[%clk 0:01:01]}  Bxg5 {[%clk 0:00:38]} 27. fxg5 {[%clk 0:01:00]}  Bg8 {[%clk 0:00:29]} 28. c3 {[%clk 0:00:50]}  Bf7 {[%clk 0:00:24]} 29. Bc1 {[%clk 0:00:49]}  d4 {[%clk 0:00:22]} 30. c4 {[%clk 0:00:45]}  Be8 {[%clk 0:00:22]} 31. Bf4 {[%clk 0:00:44]}  Bc6 {[%clk 0:00:22]} 32. Qe2 {[%clk 0:00:42]}  b6 {[%clk 0:00:19]} 33. a3 {[%clk 0:00:38]}  Kc8 {[%clk 0:00:19]} 34. b4 {[%clk 0:00:37]}  Kd7 {[%clk 0:00:20]} 35. Kh2 {[%clk 0:00:31]}  Ke7 {[%clk 0:00:20]} 36. Kg3 {[%clk 0:00:31]}  Kf7 {[%clk 0:00:20]} 37. Rb1 {[%clk 0:00:30]}  Rb8 {[%clk 0:00:20]} 38. Rb2 {[%clk 0:00:29]}  b5 {[%clk 0:00:15]} 39. Rc1 {[%clk 0:00:23]}  Qe7 {[%clk 0:00:09]} 40. cxb5 {[%clk 0:00:12]}  Rxb5 {[%clk 0:00:10]} 41. bxc5 {[%clk 0:00:12]}  Rxc5 {[%clk 0:00:09]} 42. Rbc2 {[%clk 0:00:10]}  Rxc2 {[%clk 0:00:09]} 43. Qxc2 {[%clk 0:00:09]}  Rc8 {[%clk 0:00:06]} 44. Qc5 {[%clk 0:00:08]}  Qd7 {[%clk 0:00:07]} 45. Qd6 {[%clk 0:00:05]}  Qe8 {[%clk 0:00:01]} 46. Rc5 {[%clk 0:00:04]}  Bd5 {[%clk 0:00:01]} 47. Rxc8 {[%clk 0:00:03]}  Qxc8 {[%clk 0:00:01]} 48. Qb4 {[%clk 0:00:03]}  Qc2 {[%clk 0:00:01]} 49. Qd2 {[%clk 0:00:01]} 1-0


[Site "https://www.chess.com"]

[Event "Titled Tuesday Blitz June 6 Early 2023"]
[White "Kukhmazov, Arsen"]
[Black "Afanasieva, Alexandra"]
[WhiteFideId "24108260"]
[BlackFideId "34126926"]
[WhiteElo "2396"]
[BlackElo "1736"]
[Result "1-0"]
[Round "7"]
[TimeControl "180+2"]
[Date "2023.06.06"]
[WhiteClock "0:02:10"]
[BlackClock "0:00:21"]
[Board "56"]

1. d4 {[%clk 0:02:59]}  Nf6 {[%clk 0:02:58]} 2. c4 {[%clk 0:02:58]}  e6 {[%clk 0:02:58]} 3. Nc3 {[%clk 0:02:57]}  Bb4 {[%clk 0:02:57]} 4. Qc2 {[%clk 0:02:57]}  O-O {[%clk 0:02:53]} 5. e4 {[%clk 0:02:57]}  d6 {[%clk 0:02:47]} 6. Bd3 {[%clk 0:02:54]}  e5 {[%clk 0:02:46]} 7. Ne2 {[%clk 0:02:53]}  c5 {[%clk 0:02:43]} 8. d5 {[%clk 0:02:53]}  Bg4 {[%clk 0:02:31]} 9. f3 {[%clk 0:02:52]}  Bh5 {[%clk 0:02:26]} 10. g4 {[%clk 0:02:51]}  Bxg4 {[%clk 0:01:32]} 11. fxg4 {[%clk 0:02:52]}  Nxg4 {[%clk 0:01:33]} 12. Ng3 {[%clk 0:02:47]}  Qh4 {[%clk 0:01:26]} 13. Qg2 {[%clk 0:02:36]}  Bxc3+ {[%clk 0:01:05]} 14. bxc3 {[%clk 0:02:36]}  f5 {[%clk 0:00:38]} 15. exf5 {[%clk 0:02:32]}  Nd7 {[%clk 0:00:38]} 16. O-O {[%clk 0:02:29]}  Ndf6 {[%clk 0:00:38]} 17. Bd2 {[%clk 0:02:15]}  Rae8 {[%clk 0:00:32]} 18. Rae1 {[%clk 0:02:13]}  Nh5 {[%clk 0:00:20]} 19. Nxh5 {[%clk 0:02:10]}  Qxh5 {[%clk 0:00:21]} 20. Be2 {[%clk 0:02:10]} 1-0


[Site "https://www.chess.com"]